bitfinex/quotes_SOLUSD_20250630
["timestamp","ask_amount","ask_price","bid_price","bid_amount"]
[1751289394976,4.9691684,150.44,150.41,6.64818615]
[1751289395175,4.9691684,150.43,150.41,6.64818615]
[1751289395373,6.33235305,150.45,150.41,6.64818615]
[1751289395671,4.96868487,150.44,150.41,6.64818615]
[1751289395858,4.96868487,150.43,150.41,6.64818615]
[1751289396061,6.33235305,150.45,150.41,6.64818615]
[1751289396256,10.36977175,150.44,150.4,5.66]
[1751289396464,4.96825951,150.43,150.4,5.66]
[1751289396652,4.96825951,150.42,150.4,12.30887496]
[1751289396969,12.77670827,150.44,150.4,12.30887496]
[1751289397181,10.37007275,150.43,150.4,5.66]
[1751289397473,5.40151224,150.43,150.4,5.66]
[1751289398678,19.42418342,150.44,150.4,5.66]
[1751289398981,4.96837524,150.43,150.4,5.66]
[1751289399153,4.96837524,150.42,150.4,5.66]
[1751289399354,19.42418342,150.44,150.4,5.66]
[1751289399580,4.96862907,150.43,150.4,5.66]
[1751289399883,4.96862907,150.42,150.4,5.66]
[1751289400068,5.40151224,150.43,150.4,5.66]
[1751289400256,4.96868692,150.42,150.4,5.66]
[1751289400454,5.40151224,150.43,150.4,5.66]
[1751289400679,4.96868686,150.42,150.4,5.66]
[1751289400977,5.40151224,150.43,150.4,5.66]
[1751289401175,4.96868795,150.42,150.4,5.66]
[1751289401391,5.40151224,150.43,150.4,5.66]
[1751289401557,4.9686956,150.42,150.4,5.66]
[1751289401759,5.40151224,150.43,150.4,5.66]
[1751289401964,4.9686966,150.42,150.4,5.66]
[1751289402274,19.42418342,150.44,150.4,17.71043908]
[1751289402458,4.96878352,150.43,150.4,17.71043908]
[1751289402665,4.96878352,150.42,150.4,17.71043908]
[1751289402964,14.02267118,150.44,150.4,17.71043908]
[1751289403163,4.96878352,150.43,150.4,17.71043908]
[1751289403374,4.96878352,150.42,150.4,17.71043908]
[1751289403676,14.02267118,150.44,150.4,17.71043908]
[1751289403870,4.96930046,150.43,150.4,17.71043908]
[1751289404069,4.96930046,150.42,150.4,17.71043908]
[1751289404270,14.02267118,150.44,150.4,17.71043908]
[1751289404465,4.96979998,150.43,150.4,17.71043908]
[1751289404670,4.96979998,150.42,150.4,17.71043908]
[1751289404980,14.02267118,150.44,150.4,11.06151224]
[1751289405184,4.96987936,150.43,150.4,11.06151224]
[1751289405362,4.96987936,150.42,150.4,11.06151224]
[1751289405567,19.42418342,150.44,150.4,11.06151224]
[1751289405775,4.97035641,150.43,150.4,11.06151224]
[1751289406077,4.97035641,150.42,150.4,17.71041338]
[1751289406277,0.83095127,150.43,150.4,11.06151224]
[1751289406475,4.97089064,150.42,150.4,5.66]
[1751289406778,4.97089064,150.41,150.4,5.66]
[1751289409162,4.97209735,150.41,150.4,5.66]
[1751289410686,11.62059146,150.41,150.4,5.66]
[1751289410860,5.80315911,150.41,150.4,5.66]
[1751289411190,17.85316546,150.41,150.38,0.2]
[1751289411383,4.97209735,150.4,150.38,0.2]
[1751289411587,4.97209735,150.39,150.38,0.2]
[1751289412271,12.88106811,150.41,150.38,0.2]
[1751289412468,4.97247085,150.4,150.38,0.2]
[1751289412667,4.97257825,150.39,150.38,0.2]
[1751289413295,11.20526277,150.39,150.38,0.2]
[1751289413674,11.48958591,150.39,150.38,0.2]
[1751289414379,12.73745195,150.39,150.38,0.2]
[1751289414681,18.13896419,150.39,150.38,0.2]
[1751289418999,36.78648266,150.39,150.38,0.2]
[1751289423591,31.38497042,150.39,150.38,0.2]
[1751289423789,36.78648266,150.39,150.38,0.2]
[1751289424879,62.78648266,150.39,150.38,0.2]
[1751289426890,38.38498266,150.39,150.38,0.2]
[1751289429799,32.98347042,150.39,150.38,0.2]
[1751289429986,36.44312548,150.39,150.38,0.2]
[1751289431794,38.38879739,150.39,150.38,0.2]
[1751289432294,64.38879739,150.39,150.38,0.2]
[1751289434313,59.41834953,150.39,150.38,0.2]
[1751289436792,64.37107443,150.39,150.38,0.2]
[1751289442417,62.87257443,150.39,150.38,0.2]
[1751289443615,57.91984953,150.39,150.38,0.2]
[1751289443809,62.87613594,150.39,150.38,0.2]
[1751289444314,62.87668645,150.39,150.38,0.2]
[1751289451918,60.93100012,150.39,150.38,0.2]
[1751289454424,55.9741632,150.39,150.38,0.2]
[1751289454600,60.9418956,150.39,150.38,0.2]
[1751289457308,57.48225496,150.39,150.38,0.2]
[1751289457509,60.9418956,150.39,150.38,0.2]
[1751289459430,60.94818691,150.39,150.38,0.2]
[1751289461315,5.07402371,150.39,150.38,3.65964064]
[1751289461512,5.07402371,150.39,150.38,10.30946109]
[1751289461914,0.1,150.39,150.38,10.30946109]
[1751289462315,0.1,150.39,150.38,11.91156109]
[1751289464011,0.1,150.39,150.38,41.91156109]
[1751289471513,0.1,150.39,150.38,129.51156109]
[1751289472319,0.1,150.39,150.38,143.35012365]
[1751289472630,0.1,150.42,150.38,178.62432364]
[1751289472822,0.1,150.42,150.41,3.45964064]
[1751289473018,0.1,150.42,150.41,33.45964064]
[1751289474042,0.1,150.42,150.41,40.10813475]
[1751289475521,0.1,150.42,150.41,36.64849411]
[1751289476026,0.1,150.42,150.41,42.04595035]
[1751289477251,0.1,150.42,150.41,35.39745624]
[1751289477550,0.1,150.42,150.41,42.04595035]
[1751289478066,0.1,150.42,150.41,35.39745624]
[1751289479537,0.1,150.42,150.41,42.04595035]
[1751289492437,0.1,150.42,150.41,36.64849411]
[1751289492641,0.1,150.42,150.41,42.04595035]
[1751289500453,0.1,150.42,150.41,36.64849411]
[1751289500658,0.1,150.42,150.41,42.04595035]
[1751289513986,0.1,150.44,150.43,26.0]
[1751289514208,0.1,150.44,150.43,61.39745624]
[1751289514777,0.1,150.44,150.43,64.73809714]
[1751289515795,0.1,150.44,150.43,71.38570732]
[1751289516089,0.1,150.44,150.43,68.04506642]
[1751289516389,0.1,150.44,150.43,113.55471528]
[1751289516588,0.1,150.45,150.44,24.0471051]
[1751289516770,0.1,150.46,150.45,24.0471051]
[1751289516964,0.1,150.46,150.45,50.9071051]
[1751289517590,0.1,150.46,150.45,57.55383158]
[1751289517884,0.1,150.46,150.45,87.55383158]
[1751289519797,0.1,150.46,150.45,175.43815472]
[1751289521788,0.1,150.46,150.45,129.64418272]
[1751289521989,0.1,150.46,150.45,135.28418272]
[1751289523986,0.1,150.46,150.45,105.28418272]
[1751289524995,0.1,150.46,150.45,17.68418272]
[1751289532978,0.1,150.46,150.45,47.68418272]
[1751289538919,0.1,150.46,150.45,47.68418272]
[1751289543739,0.1,150.46,150.45,74.54418272]
[1751289548545,0.1,150.46,150.45,162.14418272]
[1751289552142,0.1,150.46,150.45,180.79383158]
[1751289552326,0.1,150.49,150.45,197.41064779]
[1751289552524,0.1,150.49,150.48,5.39745624]
[1751289554219,0.1,150.49,150.48,12.04285762]
[1751289558130,0.1,150.49,150.48,47.44031386]
[1751289558318,0.1,150.49,150.48,66.08996272]
[1751289558516,0.1,150.53,150.48,66.08996272]
[1751289558517,0.1,150.53,150.51,26.0]
[1751289558749,0.1,150.53,150.52,11.05745624]
[1751289559831,0.1,150.53,150.52,17.70109163]
[1751289561133,0.1,150.53,150.52,5.39745624]
[1751289561346,0.1,150.53,150.52,11.05745624]
[1751289562948,0.1,150.53,150.52,5.66]
[1751289564945,0.93039925,150.53,150.52,5.66]
[1751289565121,0.1,150.53,150.52,5.66]
[1751289567048,0.1,150.53,150.51,5.39745624]
[1751289568430,0.1,150.53,150.5,5.39745624]
[1751289572363,0.1,150.53,150.51,5.39745624]
[1751289572531,0.93039925,150.53,150.51,5.39745624]
[1751289575750,0.93039925,150.53,150.5,5.39745624]
[1751289577763,0.93039925,150.53,150.5,3.45077872]
[1751289578056,7.57360113,150.53,150.5,3.45077872]
[1751289579169,0.93039925,150.53,150.51,3.45077872]
[1751289579379,0.1,150.53,150.51,3.45077872]
[1751289582172,0.1,150.53,150.51,10.09480973]
[1751289582370,0.1,150.53,150.51,3.45077872]
[1751289586667,0.1,150.53,150.51,10.0948238]
[1751289589576,0.1,150.53,150.52,3.45077872]
[1751289590976,0.1,150.53,150.52,10.09441411]
[1751289591747,0.1,150.53,150.52,3.45077872]
[1751289596784,0.1,150.53,150.52,10.09441411]
[1751289598650,0.1,150.53,150.52,3.45077872]
[1751289598978,0.1,150.53,150.51,6.64388572]
[1751289598979,0.1,150.53,150.51,3.45077872]
[1751289599285,0.1,150.53,150.5,5.64]
[1751289599574,0.1,150.53,150.51,3.45077872]
[1751289599975,0.1,150.53,150.52,3.45077872]
[1751289601787,0.1,150.53,150.51,6.64406757]
[1751289601963,0.1,150.53,150.5,5.64]
[1751289601964,4.38117797,150.53,150.47,6.64540207]
[1751289602164,0.93039925,150.53,150.5,3.45077872]
[1751289603287,0.1,150.53,150.5,3.45077872]
[1751289603888,0.1,150.53,150.48,35.64]
[1751289603889,11.02437877,150.53,150.48,42.28538848]
[1751289604189,11.02437877,150.53,150.49,3.45077872]
[1751289604964,0.93039925,150.53,150.5,3.45077872]
[1751289605484,0.1,150.53,150.51,3.45077872]
[1751289608986,0.1,150.53,150.49,0.2]
[1751289608987,10.19404647,150.53,150.49,0.2]
[1751289609164,11.02444572,150.53,150.49,3.65077872]
[1751289609572,4.95867872,150.52,150.49,0.2]
[1751289609986,3.45077872,150.5,150.49,0.2]
[1751289613598,4.28128832,150.51,150.49,0.2]
[1751289614593,10.92538098,150.51,150.49,0.2]
[1751289621198,7.47460226,150.51,150.49,0.2]
[1751289621402,0.8305096,150.51,150.49,0.2]
[1751289623101,7.4746708,150.51,150.49,0.2]
[1751289623482,0.8305096,150.51,150.49,0.2]
[1751289628681,10.92537599,150.51,150.49,0.2]
[1751289630210,4.28128832,150.51,150.49,0.2]
[1751289630710,0.8305096,150.51,150.49,0.2]
[1751289631284,4.28128832,150.51,150.49,0.2]
[1751289631492,3.45077872,150.5,150.49,0.2]
[1751289631782,22.38475072,150.5,150.49,0.2]
[1751289631989,35.62326899,150.5,150.49,0.2]
[1751289636210,32.17249027,150.5,150.49,0.2]
[1751289636507,35.62326899,150.5,150.49,0.2]
[1751289640718,0.9305096,150.51,150.49,0.2]
[1751289640920,10.19488611,150.51,150.49,0.2]
[1751289641119,4.2813435,150.5,150.49,0.2]
[1751289642027,0.83056478,150.5,150.49,0.2]
[1751289644805,0.9305096,150.51,150.49,0.2]
[1751289645433,0.1,150.51,150.49,0.2]
[1751289648418,10.19494861,150.51,150.49,0.2]
[1751289648627,4.2813435,150.5,150.49,0.2]
[1751289649520,10.92586177,150.5,150.49,0.2]
[1751289651516,7.47508305,150.5,150.49,0.2]
[1751289652404,7.75940619,150.5,150.49,0.2]
[1751289652610,11.21018491,150.5,150.49,0.2]
[1751289654497,0.83056478,150.5,150.49,0.2]
[1751289654898,0.1,150.51,150.49,0.2]
[1751289655698,0.1,150.51,150.49,3.65077872]
[1751289657527,0.1,150.51,150.49,10.29567496]
[1751289657906,0.1,150.51,150.49,12.23788598]
[1751289658213,0.1,150.51,150.5,5.39298974]
[1751289658600,0.1,150.51,150.5,12.03750801]
[1751289660614,0.1,150.51,150.49,12.23765445]
[1751289661214,0.1,150.51,150.49,6.84466471]
[1751289661415,0.1,150.51,150.49,12.23765445]
[1751289663647,0.1,150.51,150.49,6.84466471]
[1751289663938,0.1,150.51,150.49,12.23765445]
[1751289664622,0.1,150.51,150.49,0.2]
[1751289665645,0.1,150.51,150.49,5.59298974]
[1751289666946,5.49298974,150.51,150.49,0.2]
[1751289667443,0.1,150.51,150.49,0.2]
[1751289673144,0.1,150.51,150.49,12.23793914]
[1751289673532,0.1,150.51,150.5,5.39298974]
[1751289674947,0.1,150.51,150.49,0.2]
[1751289678240,7.574665,150.51,150.49,0.2]
[1751289679040,0.9305096,150.51,150.49,0.2]
[1751289679248,0.1,150.51,150.49,0.2]
[1751289679749,0.1,150.51,150.5,5.39298974]
[1751289680748,0.1,150.51,150.49,12.23794542]
[1751289681557,0.1,150.51,150.5,5.39298974]
[1751289681739,0.1,150.51,150.5,6.91978974]
[1751289682249,0.1,150.56,150.54,26.0]
[1751289682556,1.4007261,150.62,150.56,18.64964886]
[1751289682730,5.39298974,150.73,150.61,29.43562834]
[1751289682932,26.0,150.71,150.67,5.39298974]
[1751289683146,26.0,150.71,150.61,27.04]
[1751289683147,0.8292424,150.74,150.7,5.39298974]
[1751289683449,5.39298974,150.77,150.72,5.39298974]
[1751289683661,0.8290774,150.77,150.71,17.70814916]
[1751289683831,5.39298974,150.76,150.71,17.70814916]
[1751289684021,0.82918739,150.75,150.72,5.39298974]
[1751289684348,0.82902241,150.78,150.71,12.31515942]
[1751289684650,3.45631181,150.8,150.77,5.39298974]
[1751289685148,26.82880254,150.82,150.71,28.90330884]
[1751289685350,0.82880254,150.82,150.75,26.0]
[1751289685657,12.0217791,150.86,150.81,5.39298974]
[1751289685833,0.82863771,150.85,150.81,5.39298974]
[1751289686034,0.82863771,150.85,150.79,44.64964886]
[1751289686235,1.4007261,150.92,150.87,26.0]
[1751289686444,1.4007261,150.92,150.91,5.39298974]
[1751289686744,1.4007261,150.92,150.84,0.28432314]
[1751289686949,1.4007261,150.92,150.83,6.0]
[1751289686950,5.39298974,150.87,150.83,6.0]
[1751289687131,2.22897947,150.92,150.85,26.0]
[1751289687330,1.4007261,150.92,150.91,5.39298974]
[1751289687632,1.4007261,150.92,150.89,5.39298974]
[1751289687846,1.4007261,150.92,150.89,8.94091778]
[1751289688567,1.4007261,150.92,150.9,8.94091778]
[1751289688729,1.4007261,150.92,150.91,8.94091778]
[1751289689134,1.4007261,150.92,150.91,27.59056664]
[1751289689329,1.4007261,150.92,150.89,6.0]
[1751289689877,1.4007261,150.92,150.89,14.94091778]
[1751289690553,1.4007261,150.92,150.88,8.94091778]
[1751289690847,1.4007261,150.92,150.89,8.94091778]
[1751289691059,1.4007261,150.92,150.85,26.0]
[1751289691232,1.4007261,150.92,150.87,8.94091778]
[1751289691562,1.4007261,150.92,150.86,8.94091778]
[1751289691873,1.4007261,150.92,150.85,32.62897764]
[1751289692037,1.4007261,150.92,150.89,8.94091778]
[1751289692236,1.4007261,150.92,150.9,8.94091778]
[1751289692846,1.4007261,150.92,150.89,8.94091778]
[1751289693229,1.4007261,150.92,150.9,8.94091778]
[1751289693444,1.4007261,150.92,150.86,26.0]
[1751289693756,1.4007261,150.92,150.9,8.94091778]
[1751289694055,1.4007261,150.92,150.89,8.94091778]
[1751289694247,1.6257,151.04,150.92,18.64964886]
[1751289694445,1.6257,151.04,150.95,26.0]
[1751289694646,17.18773876,151.04,150.98,8.94091778]
[1751289694829,0.82765013,151.03,150.98,8.94091778]
[1751289695032,6.5387,151.09,150.99,18.64964886]
[1751289695228,1.6531,151.11,151.08,8.94091778]
[1751289695229,0.82721196,151.11,151.08,8.94091778]
[1751289695441,7.3807261,151.22,151.1,17.88183556]
[1751289695442,0.82693834,151.16,151.1,17.88183556]
[1751289695636,0.82671957,151.2,151.11,27.82]
[1751289695938,8.94091778,151.2,151.11,18.64964886]
[1751289696141,5.6305587,151.2,151.08,6.32]
[1751289696348,0.82677425,151.19,151.1,8.94091778]
[1751289696556,0.82677425,151.19,151.09,8.94091778]
[1751289696752,8.94091778,151.15,151.1,8.94091778]
[1751289696955,8.94091778,151.12,151.07,26.0]
[1751289697255,0.82677425,151.19,151.04,0.63731479]
[1751289697558,8.94091778,151.17,151.07,26.0]
[1751289697763,9.76785612,151.16,151.11,8.94091778]
[1751289697964,0.82693834,151.16,151.15,8.94091778]
[1751289698164,5.53882948,151.21,151.16,18.64964886]
[1751289698365,14.47974726,151.21,151.1,8.94091778]
[1751289698564,8.94091778,151.16,151.11,26.0]
[1751289698785,8.94091778,151.13,151.08,41.26091778]
[1751289698983,7.72602448,151.18,151.09,6.61857171]
[1751289699168,7.72602448,151.18,151.09,15.55948949]
[1751289699480,26.0,151.17,151.09,6.61857171]
[1751289699674,8.94091778,151.11,151.06,8.94091778]
[1751289699853,8.94091778,151.11,151.07,6.61936937]
[1751289700055,8.94091778,151.13,151.08,8.94091778]
[1751289700468,8.94091778,151.1,151.05,6.61995276]
[1751289700669,6.2799,151.15,151.09,8.94091778]
[1751289700886,15.55773773,151.13,151.05,34.2105194]
[1751289701084,15.55773773,151.13,151.05,18.64964886]
[1751289701387,0.82671957,151.2,151.1,8.94091778]
[1751289701558,7.44053562,151.2,151.1,26.0]
[1751289701765,13.8314372,151.18,151.12,13.8314372]
[1751289701973,14.65826614,151.18,151.13,13.8314372]
[1751289702281,13.8314372,151.16,151.11,13.8314372]
[1751289702484,26.0,151.17,151.1,13.8314372]
[1751289702787,13.8314372,151.14,151.08,26.0]
[1751289702988,13.8314372,151.14,151.09,13.8314372]
[1751289703191,13.8314372,151.13,151.09,13.8314372]
[1751289703483,6.6159321,151.16,151.09,13.8314372]
[1751289703675,13.8314372,151.13,151.06,18.64964886]
[1751289703872,13.8314372,151.15,151.1,13.8314372]
[1751289704085,6.6159321,151.16,151.09,39.8314372]
[1751289704673,13.8314372,151.17,151.1,13.8314372]
[1751289704889,13.8314372,151.16,151.1,13.8314372]
[1751289705087,13.8314372,151.16,151.08,6.61900979]
[1751289705088,13.8314372,151.16,151.08,20.45044699]
[1751289705382,0.82688364,151.17,151.08,20.45044699]
[1751289705383,14.65832084,151.17,151.1,43.8314372]
[1751289705974,13.8314372,151.16,151.1,30.0]
[1751289706281,13.8314372,151.15,151.1,30.0]
[1751289706679,13.8314372,151.14,151.1,30.0]
[1751289707393,13.8314372,151.15,151.1,30.0]
[1751289707588,13.8314372,151.15,151.1,36.61806872]
[1751289707788,7.44202764,151.17,151.1,36.61806872]
[1751289707974,0.82677425,151.19,151.13,13.8314372]
[1751289708179,13.8314372,151.18,151.13,43.8314372]
[1751289708692,13.8314372,151.18,151.14,13.8314372]
[1751289709061,13.8314372,151.18,151.13,50.44820109]
[1751289709675,13.8314372,151.17,151.13,50.44820109]
[1751289709989,5.53882948,151.21,151.16,13.8314372]
[1751289710305,5.53882948,151.21,151.16,30.0]
[1751289710469,5.53882948,151.21,151.16,43.8314372]
[1751289710667,5.53882948,151.21,151.2,32.48108606]
[1751289710894,5.53882948,151.21,151.2,27.08519381]
[1751289711066,5.53882948,151.21,151.2,76.01916581]
[1751289711270,5.53882948,151.21,151.2,89.85060301]
[1751289711471,5.53882948,151.21,151.2,76.01916581]
[1751289711674,3.87222948,151.21,151.2,89.85060301]
[1751289711874,1.4007261,151.22,151.21,18.933972]
[1751289712093,1.4007261,151.22,151.21,91.4854092]
[1751289712577,1.4007261,151.22,151.21,91.20108606]
[1751289712768,1.4007261,151.22,151.21,62.48108606]
[1751289713068,1.4007261,151.22,151.21,69.37872842]
[1751289713471,2.47410023,151.35,151.28,26.0]
[1751289713472,1.6482,151.35,151.28,26.0]
[1751289713720,10.0,151.44,151.28,26.0]
[1751289713721,1.6352,151.42,151.35,18.64964886]
[1751289713910,17.32845559,151.49,151.33,18.933972]
[1751289713911,26.8253549,151.45,151.39,13.8314372]
[1751289714088,26.8253549,151.45,151.38,13.8314372]
[1751289714295,26.0,151.45,151.36,7.0]
[1751289714608,0.82524592,151.47,151.36,7.0]
[1751289714609,13.8314372,151.44,151.36,7.0]
[1751289714799,0.82524592,151.47,151.39,13.8314372]
[1751289715000,13.8314372,151.45,151.4,13.8314372]
[1751289715201,7.42743106,151.47,151.4,13.8314372]
[1751289715202,0.82524592,151.47,151.4,13.8314372]
[1751289715397,13.8314372,151.45,151.41,13.8314372]
[1751289715615,1.6516,151.49,151.44,13.8314372]
[1751289715804,13.8314372,151.48,151.45,6.98]
[1751289716006,13.8314372,151.46,151.45,6.98]
[1751289716214,13.8314372,151.46,151.4,30.0]
[1751289716406,13.8314372,151.44,151.4,30.0]
[1751289716711,13.8314372,151.43,151.4,30.0]
[1751289717113,13.8314372,151.41,151.4,30.0]
[1751289717291,6.60283922,151.45,151.4,30.0]
[1751289717292,0.82546391,151.43,151.4,30.0]
[1751289717494,13.8314372,151.41,151.4,30.0]
[1751289718494,13.8314372,151.41,151.36,6.60636732]
[1751289718696,0.82546391,151.43,151.37,30.0]
[1751289718929,13.8314372,151.39,151.37,30.0]
[1751289719130,0.82546391,151.43,151.38,13.8314372]
[1751289719432,0.1,151.49,151.42,13.8314372]
[1751289719636,0.1,151.49,151.47,13.8314372]
[1751289719924,0.1,151.49,151.48,13.8314372]
[1751289720212,0.1,151.49,151.44,0.14216157]
[1751289720213,0.1,151.49,151.45,39.8314372]
[1751289720414,0.1,151.49,151.46,13.8314372]
[1751289720726,0.1,151.49,151.47,30.0]
[1751289721020,13.8314372,151.48,151.42,6.60408738]
[1751289721243,24.02905644,151.49,151.39,6.98]
[1751289721425,24.02905644,151.49,151.28,6.3776]
[1751289721426,32.48108606,151.44,151.33,20.8114372]
[1751289721740,32.48108606,151.44,151.31,6.60894851]
[1751289721741,13.8314372,151.42,151.38,13.8314372]
[1751289721944,0.1,151.49,151.41,13.8314372]
[1751289722147,13.8314372,151.48,151.43,13.8314372]
[1751289722458,5.46781885,151.53,151.51,26.0]
[1751289722634,6.59150245,151.72,151.61,26.0]
[1751289722836,40.33675973,151.73,151.63,26.0]
[1751289722837,1.71074784,151.7,151.63,26.0]
[1751289723041,1.71074784,151.7,151.69,20.42382957]
[1751289723217,0.21074784,151.7,151.69,6.59239237]
[1751289723414,0.21074784,151.7,151.63,6.59500098]
[1751289723610,0.21074784,151.7,151.63,23.08250345]
[1751289723844,6.80281808,151.7,151.63,6.59500098]
[1751289724008,0.82404904,151.69,151.63,6.59500098]
[1751289724213,13.8314372,151.68,151.63,6.59500098]
[1751289724414,13.8314372,151.67,151.64,0.5]
[1751289724646,13.8314372,151.65,151.64,0.5]
[1751289725016,20.42580116,151.65,151.59,7.38]
[1751289725217,13.8314372,151.6,151.57,3.0]
[1751289725417,0.28432314,151.62,151.57,3.0]
[1751289725636,0.28432314,151.62,151.44,53.5514372]
[1751289725637,26.0,151.55,151.43,7.38]
[1751289725941,26.0,151.55,151.39,17.62398534]
[1751289725942,13.8314372,151.48,151.42,6.60398472]
[1751289726116,0.82524592,151.47,151.4,13.8314372]
[1751289726318,13.8314372,151.49,151.37,23.12215101]
[1751289726525,14.6565197,151.5,151.45,13.8314372]
[1751289726940,0.8250825,151.5,151.44,13.8314372]
[1751289727151,6.60120268,151.49,151.43,13.8314372]
[1751289727326,14.65662864,151.48,151.43,13.8314372]
[1751289727664,0.82519144,151.48,151.4,13.8314372]
[1751289727953,17.43581728,151.44,151.39,17.43581728]
[1751289728156,17.43581728,151.43,151.39,17.43581728]
[1751289728340,17.43581728,151.43,151.38,17.43581728]
[1751289728544,0.82519144,151.48,151.42,17.43581728]
[1751289728747,17.43581728,151.47,151.42,17.43581728]
[1751289729128,0.21074858,151.43,151.37,49.12215101]
[1751289729329,0.21074858,151.43,151.38,30.0]
[1751289729636,0.21074858,151.43,151.38,47.43581728]
[1751289729838,0.21074858,151.43,151.42,17.43581728]
[1751289730553,0.21074858,151.43,151.41,17.43581728]
[1751289731257,0.21074858,151.43,151.39,6.6054561]
[1751289731460,0.21074858,151.43,151.41,17.43581728]
[1751289731670,17.64656586,151.43,151.38,47.43581728]
[1751289732133,17.64656586,151.43,151.36,7.38]
[1751289732134,0.82551842,151.42,151.36,7.38]
[1751289732332,6.8145042,151.43,151.37,17.43581728]
[1751289732654,17.43581728,151.41,151.36,24.81581728]
[1751289732854,17.43581728,151.41,151.36,13.98662506]
[1751289733027,17.43581728,151.42,151.37,17.43581728]
[1751289733228,1.03621249,151.43,151.37,6.60625047]
[1751289733425,17.43581728,151.42,151.37,6.60625047]
[1751289733731,17.43581728,151.41,151.36,13.9866741]
[1751289733930,17.43581728,151.4,151.36,24.81581728]
[1751289734146,17.43581728,151.4,151.36,7.38]
[1751289734346,17.43581728,151.4,151.36,24.81581728]
[1751289734547,7.63995135,151.43,151.36,7.38]
[1751289734740,17.43581728,151.4,151.36,24.81581728]
[1751289735032,17.43581728,151.4,151.36,7.38]
[1751289735253,17.43581728,151.39,151.36,7.38]
[1751289735558,1.03621249,151.43,151.36,7.38]
[1751289735559,6.6041474,151.42,151.36,7.38]
[1751289735733,17.43581728,151.39,151.36,7.38]
[1751289736138,17.43581728,151.39,151.34,17.43581728]
[1751289736139,17.43581728,151.39,151.34,6.60756988]
[1751289736338,17.43581728,151.39,151.34,17.43581728]
[1751289736544,18.26155383,151.38,151.33,17.43581728]
[1751289736731,18.26155383,151.38,151.34,30.0]
[1751289736932,18.26155383,151.38,151.33,17.43581728]
[1751289737128,18.26155383,151.38,151.31,36.32888249]
[1751289737129,24.04222361,151.37,151.31,36.32888249]
[1751289737434,24.04222361,151.37,151.32,17.43581728]
[1751289737733,24.04222361,151.37,151.3,13.9890502]
[1751289737734,18.26166294,151.36,151.3,13.9890502]
[1751289737938,17.43581728,151.36,151.31,17.43581728]
[1751289738145,17.43581728,151.35,151.3,7.38]
[1751289738350,0.82584566,151.36,151.31,0.5]
[1751289738536,17.43581728,151.32,151.3,7.38]
[1751289738736,17.43581728,151.31,151.25,6.61157024]
[1751289739060,0.82590023,151.35,151.27,30.0]
[1751289739061,17.43581728,151.29,151.27,30.0]
[1751289739251,17.43581728,151.29,151.24,31.42780129]
[1751289739448,17.43581728,151.28,151.24,13.99198401]
[1751289739753,17.43581728,151.28,151.24,31.42780129]
[1751289739979,17.43581728,151.28,151.24,7.38]
[1751289740135,17.43581728,151.29,151.24,24.81581728]
[1751289740334,17.43581728,151.29,151.24,7.38]
[1751289740552,18.26209967,151.28,151.24,7.38]
[1751289740741,17.43581728,151.27,151.24,7.38]
[1751289740953,17.43581728,151.26,151.24,7.38]
[1751289741154,17.43581728,151.26,151.18,29.7]
[1751289741155,0.21074858,151.24,151.2,24.04953872]
[1751289741469,17.64656586,151.24,151.2,24.04953872]
[1751289741864,17.64656586,151.24,151.2,17.43581728]
[1751289742032,17.64656586,151.24,151.19,6.6140738]
[1751289742033,17.43581728,151.23,151.19,24.04989108]
[1751289742657,0.21074858,151.24,151.22,17.43581728]
[1751289743049,0.21074858,151.24,151.19,6.6140738]
[1751289743248,0.21074858,151.24,151.23,17.43581728]
[1751289743567,0.21074858,151.24,151.21,24.04900854]
[1751289743773,0.21074858,151.24,151.19,6.61376029]
[1751289743955,18.47306678,151.24,151.19,24.04957757]
[1751289744142,18.47306678,151.24,151.18,7.38]
[1751289744143,17.43581728,151.22,151.18,7.38]
[1751289744350,0.21074858,151.24,151.19,17.43581728]
[1751289744668,17.43581728,151.23,151.19,17.43581728]
[1751289744974,17.43581728,151.22,151.18,31.43036056]
[1751289745168,17.64656586,151.24,151.19,17.43581728]
[1751289747881,14.03094242,151.24,151.19,6.61389938]